bitfinex-derivatives/quotes_ETHF0:USTF0_20251203
["timestamp","ask_amount","ask_price","bid_price","bid_amount"]
[1764743460399,3.2078,3081.0,3080.5,0.96554869]
[1764743460600,0.00486973,3081.1,3081.0,4.2459]
[1764743460906,40.80486973,3081.1,3081.0,4.2459]
[1764743461401,0.00486973,3081.1,3081.0,4.2459]
[1764743462000,3.26756973,3081.1,3080.9,3.2078]
[1764743462203,3.2627,3081.0,3080.9,1.6054]
[1764743462404,3.2627,3081.0,3080.9,3.2717]
[1764743462698,1.6234,3081.0,3080.9,3.2717]
[1764743462905,1.62826973,3081.1,3081.0,4.2459]
[1764743463300,0.00486973,3081.1,3081.0,4.2459]
[1764743464005,3.29996973,3081.1,3081.0,1.6054]
[1764743464205,1.64116973,3081.1,3081.0,3.1705]
[1764743464405,1.64116973,3081.1,3081.0,4.221]
[1764743465008,3.29996973,3081.1,3081.0,4.221]
[1764743465212,1.64116973,3081.1,3081.0,4.221]
[1764743465410,0.00486973,3081.1,3081.0,4.221]
[1764743465804,4.8441,3081.8,3081.7,3.2183]
[1764743466015,3.2078,3081.8,3081.7,3.2183]
[1764743466310,44.0078,3081.8,3081.7,3.2183]
[1764743466705,3.2078,3081.8,3081.7,3.2183]
[1764743467212,44.09996973,3082.1,3082.0,3.2183]
[1764743467512,44.09996973,3082.1,3082.0,1.6532]
[1764743468011,44.09996973,3082.1,3082.0,3.2183]
[1764743468310,42.44116973,3082.1,3082.0,3.2183]
[1764743468505,0.00486973,3082.1,3082.0,4.2688]
[1764743468705,1.64116973,3082.1,3081.5,1.0505]
[1764743469003,40.8,3082.0,3081.9,1.6532]
[1764743469215,40.8,3082.0,3081.9,3.2183]
[1764743470214,40.8,3082.0,3081.5,1.0505]
[1764743470215,41.8463,3082.0,3081.5,1.0505]
[1764743470513,40.8,3082.0,3081.9,3.2183]
[1764743470915,40.8,3082.0,3081.5,1.0505]
[1764743470916,3.21266973,3082.1,3082.0,4.2688]
[1764743471206,6.50776973,3082.1,3081.5,1.0505]
[1764743471403,3.2951,3081.5,3081.4,6.4261]
[1764743471606,4.3414,3081.5,3081.4,3.2078]
[1764743472117,4.3414,3081.5,3081.4,4.861]
[1764743472413,4.00436365,3081.5,3081.4,6.4261]
[1764743472613,0.70926365,3081.5,3081.4,6.4261]
[1764743474118,41.8463,3082.0,3081.5,1.0505]
[1764743474316,3.2951,3081.6,3081.4,3.2078]
[1764743474518,5.05072519,3081.5,3081.4,3.2078]
[1764743474713,1.6363,3081.0,3080.9,6.4261]
[1764743475214,1.0463,3081.5,3081.0,1.0505]
[1764743475411,1.6363,3081.1,3081.0,2.7037]
[1764743475616,1.6363,3081.1,3081.0,4.2688]
[1764743476317,4.00468074,3081.1,3081.0,1.6532]
[1764743477418,4.00468074,3081.1,3080.9,6.4261]
[1764743477419,1.6363,3081.0,3080.9,6.4261]
[1764743477614,2.34588074,3081.0,3080.9,6.4261]
[1764743477815,4.00468074,3081.0,3080.9,6.4261]
[1764743478115,5.05098074,3081.0,3080.9,3.2078]
[1764743478719,45.85098074,3081.0,3080.9,3.2078]
[1764743479421,41.50958074,3081.0,3080.9,6.4261]
[1764743479616,41.50958074,3081.0,3080.9,4.861]
[1764743479816,41.50958074,3081.0,3080.9,6.4261]
[1764743481018,0.70958074,3081.0,3080.9,6.4261]
[1764743481214,3.2951,3081.5,3081.4,1.6532]
[1764743481419,44.8050108,3081.5,3081.4,1.6532]
[1764743481724,44.8050108,3081.5,3081.4,3.2183]
[1764743481913,41.5099108,3081.5,3081.4,3.2183]
[1764743482123,0.7099108,3081.5,3081.4,3.2183]
[1764743482321,3.2078,3081.7,3081.6,1.6532]
[1764743482620,1.6363,3081.6,3081.5,3.2183]
[1764743482826,2.34599405,3081.6,3081.5,3.2183]
[1764743483018,0.70969405,3081.6,3081.5,4.2688]
[1764743483418,40.8,3082.0,3081.9,3.2183]
[1764743483721,41.50960138,3082.0,3081.9,3.2183]
[1764743483919,41.50960138,3082.0,3081.9,1.6532]
[1764743484225,4.00470138,3082.0,3081.9,1.6532]
[1764743484420,4.00470138,3082.0,3081.5,1.0505]
[1764743484621,4.00470138,3081.9,3081.8,1.6532]
[1764743485127,0.70960138,3081.9,3081.8,3.2183]
[1764743485329,4.00470138,3081.9,3081.8,1.6532]
[1764743487027,0.70960138,3081.9,3081.8,3.2183]
[1764743487530,2.34590138,3081.9,3081.8,3.2183]
[1764743487828,4.00470138,3081.9,3081.5,1.0505]
[1764743488030,4.00470138,3081.8,3081.7,1.6532]
[1764743488227,4.00470138,3081.8,3081.7,3.2183]
[1764743488427,3.2951,3081.6,3081.5,3.2183]
[1764743488726,4.00470138,3081.6,3081.5,3.2183]
[1764743488927,0.70960138,3081.6,3081.5,4.2688]
[1764743490332,4.00470138,3081.6,3081.5,4.2688]
[1764743490629,2.34590138,3081.6,3081.5,4.2688]
[1764743491429,4.00470138,3081.6,3081.5,3.2183]
[1764743491627,2.34590138,3081.6,3081.5,4.2688]
[1764743492026,4.00470138,3081.6,3081.5,3.2183]
[1764743492732,0.70960138,3081.6,3081.5,4.2688]
[1764743493531,4.02340138,3081.6,3081.5,4.2688]
[1764743493732,2.34590138,3081.6,3081.5,4.2688]
[1764743494128,3.7816,3081.5,3081.4,3.2078]
[1764743494435,4.49120138,3081.5,3081.4,4.7346]
[1764743494636,3.95160138,3081.5,3081.4,6.4883]
[1764743495136,3.95160138,3081.5,3081.4,3.2078]
[1764743495137,4.60850138,3081.5,3081.4,3.2078]
[1764743496045,4.60850138,3081.5,3081.4,4.7346]
[1764743496232,0.70960138,3081.5,3081.4,6.335]
[1764743496538,3.0736,3081.6,3081.5,1.5336]
[1764743496738,3.0736,3081.5,3081.4,4.7414]
[1764743496946,3.78354509,3081.5,3081.4,4.7414]
[1764743497142,3.78354509,3081.5,3081.4,6.3418]
[1764743497343,0.70994509,3081.5,3081.4,6.3418]
[1764743498348,2.28694509,3081.5,3081.4,6.3418]
[1764743499248,2.28694509,3081.5,3081.4,3.134]
[1764743499435,3.78354509,3081.5,3081.4,1.5336]
[1764743499640,3.78354509,3081.5,3081.3,3.2078]
[1764743499641,3.0736,3081.4,3081.3,3.2078]
[1764743499842,3.78354509,3081.4,3081.3,4.7414]
[1764743500045,3.0736,3081.4,3081.3,4.7414]
[1764743500243,3.7836269,3081.4,3081.3,4.7414]
[1764743501647,3.7836269,3081.4,3081.3,3.2078]
[1764743502433,3.0736,3080.9,3080.8,3.134]
[1764743502634,3.7836269,3080.9,3080.8,3.134]
[1764743503045,3.7836269,3080.9,3080.8,1.5336]
[1764743503351,41.5100269,3080.9,3080.8,3.134]
[1764743503845,0.7100269,3080.9,3080.8,3.134]
[1764743504048,3.0736,3081.0,3080.9,3.134]
[1764743504247,44.58469605,3081.0,3080.9,3.134]
[1764743505446,41.51109605,3081.0,3080.9,3.134]
[1764743505648,0.71109605,3081.0,3080.9,3.134]
[1764743506350,3.78469605,3081.0,3080.9,3.134]
[1764743508654,4.66739605,3081.0,3080.5,1.05324869]
[1764743508853,3.78469605,3080.9,3080.8,1.5336]
[1764743509445,3.78469605,3080.9,3080.8,3.134]
[1764743509951,1.577,3080.6,3080.5,4.18724869]
[1764743510158,3.0736,3080.6,3080.5,3.13674869]
[1764743510359,1.577,3080.6,3080.5,4.00534869]
[1764743510556,2.28780143,3080.6,3080.5,4.00534869]
[1764743510762,0.71080143,3080.6,3080.5,4.00534869]
[1764743511160,0.71080143,3080.6,3080.5,5.138701]
[1764743512960,0.71080143,3080.6,3080.5,4.00534869]
[1764743513658,44.0078,3081.1,3081.0,1.5336]
[1764743513960,44.71835976,3081.1,3081.0,1.5336]
[1764743514165,3.9563,3081.0,3080.5,0.87134869]
[1764743514362,1.577,3080.6,3080.5,4.00534869]
[1764743514664,3.78415976,3080.6,3080.5,3.13674869]
[1764743514864,0.71055976,3080.6,3080.5,5.138701]
[1764743515065,1.90658611,3081.2,3081.1,1.5336]
[1764743515066,3.23584,3081.2,3081.1,1.5336]
[1764743515359,44.58408961,3081.2,3081.1,3.134]
[1764743515765,3.78408961,3081.2,3081.1,3.134]
[1764743516156,44.58408961,3081.2,3081.1,3.134]
[1764743516354,41.51048961,3081.2,3081.1,3.134]
[1764743516661,3.2078,3081.5,3081.4,3.134]
[1764743516855,6.99182415,3081.5,3081.4,3.134]
[1764743517253,5.49522415,3081.5,3081.4,3.134]
[1764743517453,3.91822415,3081.5,3081.4,3.134]
[1764743517658,0.71042415,3081.5,3081.4,4.26735231]
[1764743518163,6.28626973,3082.1,3082.0,3.134]
[1764743518369,6.99666386,3082.1,3082.0,3.134]
[1764743518567,47.79666386,3082.1,3082.0,3.134]
[1764743519168,0.8827,3082.0,3081.5,4.0026]
[1764743519467,0.71039413,3081.9,3081.8,3.134]
[1764743520564,3.78399413,3081.9,3081.8,3.134]
[1764743520766,3.78399413,3081.9,3081.5,0.8686]
[1764743520966,3.0736,3081.6,3081.5,3.134]
[1764743521273,1.577,3082.0,3081.9,3.134]
[1764743521466,3.78386077,3082.0,3081.9,1.5336]
[1764743521661,1.577,3081.6,3081.5,4.0026]
[1764743522262,3.0736,3081.6,3081.5,4.0026]
[1764743522464,3.78382324,3081.6,3081.5,1.5336]
[1764743523261,0.71022324,3081.6,3081.5,4.0444]
[1764743523473,2.28122324,3081.6,3081.5,4.0444]
[1764743523772,3.86641591,3081.6,3081.5,1.5336]
[1764743523966,3.1413,3081.2,3081.1,4.7827]
[1764743524165,3.1413,3081.2,3081.1,6.2446]
[1764743524567,3.1413,3081.2,3081.1,3.2078]
[1764743524767,3.86650705,3081.2,3081.1,3.2078]
[1764743527575,3.1413,3080.8,3080.7,6.2446]
[1764743527765,3.15619267,3080.8,3080.7,6.2446]
[1764743528375,0.01489267,3080.8,3080.7,6.2446]
[1764743529476,0.01489267,3080.8,3080.7,3.0368]
[1764743530280,1.58589267,3080.8,3080.7,3.0368]
[1764743530974,0.01489267,3080.8,3080.7,3.0368]
[1764743531179,1.58589267,3080.8,3080.7,3.0368]
[1764743531378,3.15619267,3080.8,3080.7,3.0368]
[1764743531579,1.58589267,3080.8,3080.7,3.0368]
[1764743531877,0.01489267,3080.8,3080.7,3.0368]
[1764743532074,0.01489267,3080.8,3080.6,3.2078]
[1764743532075,3.86495836,3080.8,3080.6,3.2078]
[1764743532275,3.85008005,3080.7,3080.6,3.2078]
[1764743532680,3.1413,3080.6,3080.5,0.00274869]
[1764743532973,3.86497272,3080.6,3080.5,3.03954869]
[1764743533177,3.86497272,3080.6,3080.5,0.00274869]
[1764743534171,3.86497272,3080.6,3080.5,1.57764869]
[1764743534576,3.86497272,3080.6,3080.5,0.00274869]
[1764743537684,4.024,3080.5,3080.4,0.00486973]
[1764743537883,4.74767272,3080.5,3080.4,0.00486973]
[1764743538079,3.1413,3079.7,3079.6,6.2446]
[1764743538288,3.2078,3080.0,3079.9,3.0368]
[1764743538478,4.7788,3080.4,3080.3,3.0368]
[1764743538679,5.49106061,3080.4,3080.3,3.0395939]
[1764743538879,46.30595328,3080.4,3080.3,3.0395939]
[1764743539285,0.01909579,3080.4,3080.3,4.19853998]
[1764743539494,0.01909579,3080.4,3080.3,3.0395939]
[1764743541189,3.16039579,3080.4,3080.3,3.0395939]
[1764743542591,0.01909579,3080.4,3080.3,3.0395939]
[1764743544198,1.59009579,3080.4,3080.3,3.0395939]
[1764743544697,0.01909579,3080.4,3080.3,3.0395939]
[1764743545198,1.59009579,3080.4,3080.3,3.0395939]
[1764743545996,3.16039579,3080.4,3080.3,0.0027939]
[1764743546198,3.1413,3080.2,3080.1,3.2078]
[1764743546795,3.1413,3080.2,3080.1,6.2446]
[1764743547000,3.1413,3080.1,3080.0,1.57976973]
[1764743547192,3.1413,3080.1,3080.0,1.58244705]
[1764743547992,0.01489267,3080.1,3080.0,3.95474705]
[1764743548394,3.15619267,3080.1,3080.0,3.95474705]
[1764743548600,3.15619267,3080.1,3080.0,0.00754705]
[1764743548987,3.15619267,3080.1,3080.0,1.58244705]
[1764743550703,3.86405113,3080.1,3080.0,0.00754705]
[1764743552006,3.1413,3079.8,3079.7,6.2446]
[1764743552206,1.571,3079.8,3079.7,6.2446]
[1764743552505,3.1413,3079.8,3079.7,6.2446]
[1764743552899,3.1413,3079.8,3079.7,6.2468972]
[1764743553099,3.15619267,3079.8,3079.7,3.0390972]
[1764743553504,3.15619267,3079.8,3079.7,1.5771972]
[1764743553698,3.15619267,3079.8,3079.7,3.1851972]
[1764743553900,3.15619267,3079.8,3079.7,1.5771972]
[1764743554099,3.15619267,3079.8,3079.7,3.1851972]
[1764743554405,1.58589267,3079.8,3079.7,3.1851972]
[1764743554595,0.01489267,3079.8,3079.7,3.1851972]
[1764743555310,3.2078,3080.3,3080.2,3.0418]
[1764743555610,6.91595706,3080.3,3080.2,3.0418]
[1764743556197,2.7558,3080.1,3080.0,1.3721]
[1764743556503,5.9636,3080.3,3080.2,2.6873]
[1764743556702,3.91674134,3080.3,3080.2,2.6873]
[1764743557203,3.2078,3080.3,3080.2,2.6873]
[1764743557506,0.00420312,3080.4,3080.3,2.6873]
[1764743558708,3.12e-06,3080.4,3080.3,2.6873]
[1764743559312,40.8,3081.1,3081.0,3.4915]
[1764743559504,41.50905684,3081.1,3081.0,3.4915]
[1764743559697,0.70905684,3081.1,3081.0,3.4915]
[1764743560102,4.6216,3081.6,3081.5,3.4915]
[1764743560300,3.46864351,3081.6,3081.2,0.00486973]
[1764743560507,2.7558,3081.3,3081.2,2.69216973]
[1764743560706,1.4138,3081.3,3081.2,2.69216973]
[1764743561610,40.8,3081.5,3081.4,2.6873]
[1764743561806,41.50835688,3081.5,3081.4,2.6873]
[1764743562310,3.46415688,3081.5,3081.4,2.6873]
[1764743563012,3.46415688,3081.5,3081.4,1.3721]
[1764743563511,3.46415688,3081.5,3081.2,0.00486973]
[1764743563512,2.7558,3081.3,3081.2,0.00486973]
[1764743563809,0.70877006,3081.3,3081.2,2.69216973]
[1764743564000,3.46457006,3081.3,3081.2,2.69216973]
[1764743564400,2.7558,3081.3,3081.2,2.69216973]
[1764743565415,2.7558,3081.3,3081.2,0.00486973]
[1764743566112,43.5558,3081.3,3081.2,0.00486973]
[1764743566411,44.2641909,3081.3,3081.2,0.00486973]
[1764743566813,40.8,3081.3,3081.2,2.69216973]
[1764743567514,5.9636,3081.5,3081.4,1.3721]
[1764743567714,6.67188924,3081.5,3081.4,1.3721]
[1764743568012,2.7558,3081.3,3081.2,0.00486973]
[1764743568516,2.7558,3081.3,3081.2,1.37696973]
[1764743568712,2.7558,3081.3,3081.2,0.00486973]
[1764743568917,3.46411546,3081.3,3081.2,0.00486973]
[1764743569419,2.7558,3081.3,3081.2,0.00486973]
[1764743570709,3.2078,3081.5,3081.4,2.6873]
[1764743571615,4.6216,3081.5,3081.4,2.6873]
[1764743572619,3.2078,3081.5,3081.4,2.6873]
[1764743574413,1.4138,3081.3,3081.2,1.37696973]
[1764743574619,5.9636,3081.5,3081.4,2.6873]
[1764743575220,2.7558,3081.3,3081.2,2.69216973]
[1764743575616,2.7558,3081.3,3081.2,1.37696973]
[1764743575812,1.4138,3081.3,3081.2,2.69216973]
[1764743576419,2.7558,3081.3,3081.2,2.69216973]
[1764743577318,2.7558,3081.3,3081.2,1.37696973]
[1764743577525,2.7558,3081.3,3081.2,0.00486973]
[1764743577732,2.7558,3081.3,3081.2,2.69216973]
[1764743577912,4.6216,3081.5,3081.4,2.6873]
[1764743578115,3.2078,3081.5,3081.4,2.6873]
[1764743578419,0.00389262,3081.6,3081.5,3.4915]
[1764743580120,1.41769262,3081.6,3081.5,3.4915]
[1764743580325,2.75969262,3081.6,3081.5,1.3721]
[1764743580524,0.00486973,3081.9,3081.8,2.6873]
[1764743581225,1.4138,3081.6,3081.5,2.1763]
[1764743581419,2.75911303,3081.6,3081.5,1.3721]
[1764743581612,1.41711303,3081.6,3081.5,3.4915]
[1764743581812,0.00331303,3081.6,3081.5,3.4915]
[1764743582827,0.00331303,3081.6,3081.5,6.6993]
[1764743584829,0.00331303,3081.6,3081.5,6.86152]
[1764743586329,1.41711303,3081.6,3081.5,6.86152]
[1764743586820,0.00331303,3081.6,3081.5,6.86152]
[1764743588227,1.2625,3081.3,3081.2,0.00486973]
[1764743588433,1.2625,3081.3,3081.2,2.68856973]
[1764743588731,2.6503,3081.3,3081.2,2.68856973]
[1764743589333,1.2625,3081.3,3081.2,2.68856973]
[1764743589632,3.3599486,3081.3,3081.2,2.68856973]
[1764743589834,3.3599486,3081.3,3081.2,0.00486973]
[1764743590034,3.35995191,3081.3,3081.2,0.00486973]
[1764743590232,3.35995191,3081.3,3081.2,2.68856973]
[1764743590233,1.97215191,3081.3,3081.2,2.68856973]
[1764743590934,3.35995191,3081.3,3081.2,2.68856973]
[1764743591637,2.6503,3081.3,3081.2,2.68856973]
[1764743592130,2.65361303,3081.6,3081.5,2.6837]
[1764743592435,0.71235512,3081.6,3081.5,3.4124]
[1764743592744,0.00331303,3081.6,3081.5,3.4124]
[1764743593123,2.6503,3081.3,3081.2,1.33156973]
[1764743593329,1.2625,3081.3,3081.2,2.68856973]
[1764743594033,2.6503,3081.3,3081.2,2.68856973]
[1764743594735,2.6503,3081.3,3081.2,1.33156973]
[1764743595133,2.6503,3081.3,3081.2,2.68856973]
[1764743595836,2.6503,3081.2,3081.1,3.20293026]
[1764743596029,2.6503,3081.2,3080.0,0.7287]
[1764743596030,0.3626,3080.1,3080.0,0.7287]
[1764743596229,0.3626,3079.8,3079.6,3.2078]
[1764743596434,0.3626,3079.8,3079.0,0.7287]
[1764743596832,3.5704,3079.8,3079.0,3.9365]
[1764743597030,4.28749981,3079.8,3079.4,0.00486973]
[1764743597231,3.5704,3079.8,3079.4,0.00486973]
[1764743598038,3.2078,3079.8,3079.7,2.6859972]
[1764743598339,3.5704,3079.8,3079.7,0.0022972]
[1764743598536,3.2078,3079.8,3079.7,2.6859972]
[1764743599930,3.5704,3079.8,3079.7,1.3289972]
[1764743600132,3.5704,3079.8,3079.7,0.0022972]
[1764743600328,3.3891,3079.8,3079.7,1.3289972]
[1764743600636,3.5704,3079.8,3079.7,0.0022972]
[1764743601238,3.5704,3079.8,3079.7,1.3289972]
[1764743601640,3.2078,3079.8,3079.7,2.6859972]
[1764743602640,0.00486973,3080.1,3080.0,3.4124]
[1764743606534,4.4703,3080.8,3080.7,2.6837]
[1764743606931,5.8581,3080.8,3080.7,2.6837]
[1764743607236,5.8581,3080.8,3080.2,3.2078]
[1764743607437,5.8581,3080.8,3080.0,0.7287]
[1764743607631,5.86296973,3080.8,3080.0,0.7287]
[1764743607832,2.6503,3080.1,3080.0,2.6837]
[1764743608741,1.2625,3080.1,3080.0,2.6837]
[1764743609533,2.6503,3080.1,3080.0,2.6837]
[1764743609739,2.6503,3079.9,3079.8,4.5345]
[1764743610136,5.8581,3080.4,3080.3,1.3267]
[1764743610733,2.6503,3080.1,3080.0,3.4124]
[1764743610934,2.6503,3080.1,3080.0,1.3267]
[1764743611233,2.6503,3080.1,3080.0,2.6837]
[1764743611540,5.8581,3080.4,3080.3,1.3267]
[1764743612340,4.4703,3080.4,3080.3,2.6837]
[1764743612531,1.2625,3080.4,3080.3,2.6837]
[1764743612731,2.6503,3080.4,3080.3,2.6837]
[1764743612941,1.2625,3080.4,3080.3,2.6837]
[1764743613335,2.4748,3080.4,3080.3,2.6837]
[1764743613937,1.5147,3080.1,3080.0,3.4314]
[1764743614142,2.727,3080.1,3080.0,1.4169]
[1764743614439,2.727,3079.9,3079.8,5.9105]
[1764743614641,1.5147,3079.9,3079.8,5.9105]
[1764743615139,0.8359,3080.5,3079.8,5.9105]
[1764743615443,3.21266973,3080.8,3079.8,5.9105]
[1764743615741,0.71472805,3080.7,3079.8,5.9105]
[1764743615948,2.727,3080.7,3080.6,2.7027]
[1764743616843,1.5147,3080.7,3080.6,2.7027]
[1764743617243,3.0234,3080.7,3080.6,1.4169]
[1764743617740,3.21266973,3080.8,3080.7,2.9119]
[1764743618335,6.13096973,3080.8,3080.7,1.4419]
[1764743618538,2.9183,3080.6,3080.5,1.4419]
[1764743619250,2.9183,3080.6,3080.5,2.9119]
[1764743619639,2.9183,3080.6,3080.5,1.4419]
[1764743619837,2.9183,3080.3,3080.2,6.1197]
[1764743620345,2.9183,3080.3,3080.2,4.6497]
[1764743620536,2.9183,3080.3,3080.2,6.1197]
[1764743620745,3.21266973,3080.8,3080.2,6.1197]
[1764743621046,3.63435077,3080.7,3080.2,3.2078]
[1764743621247,1.4096,3080.3,3080.2,6.1197]
[1764743622341,3.21266973,3080.8,3080.2,6.1197]
[1764743622542,0.71662239,3080.7,3080.2,2.9119]
[1764743622752,1.4096,3080.3,3080.2,2.9119]
[1764743623041,3.21266973,3080.8,3080.7,2.9119]
[1764743623246,3.92969861,3080.8,3080.7,2.9119]
[1764743623544,0.72189861,3080.8,3080.7,2.9119]
[1764743623747,0.00486973,3080.8,3080.7,2.9119]
[1764743624060,6.1261,3081.2,3081.1,2.9119]
[1764743624349,2.9183,3081.1,3081.0,1.4419]
[1764743624653,3.63547202,3081.1,3081.0,1.4419]
[1764743625240,2.12677202,3081.1,3081.0,3.8034]
[1764743625435,0.71717202,3081.1,3081.0,3.8034]
[1764743625640,2.12677202,3081.1,3081.0,3.8034]
[1764743626650,0.71717202,3081.1,3081.0,3.8034]
[1764743627845,2.12677202,3081.1,3081.0,3.8034]
[1764743628244,0.71717202,3081.1,3081.0,3.8034]
[1764743628448,0.00486973,3081.4,3081.1,2.9119]
[1764743628645,6.1261,3082.5,3082.4,1.4419]
[1764743628848,4.01447483,3082.5,3082.0,0.8915]
[1764743629149,0.3791,3082.5,3082.0,3.8034]
[1764743629354,1.4096,3082.1,3082.0,3.8034]
[1764743629550,1.4134676,3082.1,3082.0,3.80685094]
[1764743630141,2.9221676,3082.1,3082.0,2.91535094]
[1764743630445,2.9221676,3082.1,3082.0,0.00345094]
[1764743631442,3.63787268,3082.1,3082.0,2.91535094]
[1764743631640,6.1299676,3082.1,3082.0,0.00345094]
[1764743631846,6.84561567,3082.1,3082.0,0.00345094]
[1764743633150,6.1299676,3082.1,3082.0,1.44535094]
[1764743633957,2.9183,3081.6,3081.5,3.2078]
[1764743634159,2.9183,3081.2,3080.5,0.7155]
[1764743634348,2.9183,3081.2,3081.1,1.4419]
[1764743635065,2.9183,3081.2,3081.1,1.44551459]
[1764743635845,2.9183,3081.2,3081.1,0.00361459]
[1764743636152,2.9183,3080.9,3080.8,0.00486973]
[1764743637150,2.9183,3080.9,3080.8,0.00907076]
[1764743639556,2.9183,3080.9,3080.4,4.6497]
[1764743639557,2.9183,3080.5,3080.4,4.6497]
[1764743640458,2.9183,3080.5,3080.4,3.2078]
[1764743640658,2.9183,3080.5,3080.4,3.21171897]
[1764743641449,2.9183,3080.2,3080.1,0.00486973]
[1764743642451,2.9183,3080.2,3080.1,0.00875485]
[1764743643260,3.37492973,3080.8,3080.7,2.7861]
[1764743643261,1.28296973,3080.8,3080.7,2.7861]
[1764743643846,0.00486973,3080.8,3080.7,2.7861]
[1764743644251,1.28296973,3080.8,3080.7,2.7861]
[1764743644559,2.74806973,3080.8,3080.7,2.7861]
[1764743644746,2.74806973,3080.8,3080.7,1.3712]
[1764743644946,2.74806973,3080.8,3080.7,2.7861]
[1764743645146,2.74806973,3080.8,3080.7,1.3712]
[1764743645363,2.7432,3080.6,3080.5,1.3712]
[1764743645751,2.7432,3080.6,3080.5,2.7861]
[1764743645951,1.2781,3080.6,3080.5,3.5496]
[1764743646152,2.74806973,3080.8,3080.7,1.3712]
[1764743646554,2.74806973,3080.8,3080.7,2.7861]
[1764743648063,0.00486973,3080.8,3080.7,2.7861]
[1764743649062,2.74806973,3080.8,3080.7,2.7861]
[1764743655154,0.00486973,3080.8,3080.5,1.3712]
[1764743655462,2.7432,3080.6,3080.5,1.3712]
[1764743656163,2.7432,3080.6,3080.5,2.7861]
[1764743656365,3.5733,3080.5,3080.4,3.2078]
[1764743656564,2.7432,3080.2,3080.1,0.00875485]
[1764743659257,3.4569364,3080.2,3080.1,0.00875485]
[1764743663369,3.4569364,3080.2,3080.1,2.79485485]
[1764743664067,3.4569364,3080.2,3080.1,0.00875485]
[1764743667071,3.4569364,3080.2,3080.1,1.37995485]
[1764743667370,3.4569364,3080.2,3080.1,0.00875485]
[1764743668774,3.4569364,3080.2,3080.1,2.79485485]
[1764743670064,3.4569364,3080.2,3080.1,0.00875485]
[1764743671173,1.2781,3079.6,3079.5,3.6776]
[1764743671675,43.0888,3080.4,3079.5,3.6776]
[1764743671874,0.71466685,3080.3,3079.5,3.6776]
[1764743672074,0.71466685,3080.2,3079.5,3.6776]
[1764743672274,3.45786685,3080.1,3080.0,1.3712]
[1764743672474,3.45786685,3080.1,3079.5,0.90002862]
[1764743672675,3.45786685,3080.0,3079.9,2.7861]
[1764743673569,1.2282,3079.6,3079.5,3.39852862]
[1764743674274,0.4268,3080.0,3079.5,3.39852862]
[1764743674668,2.6373,3079.6,3079.5,1.15912862]
[1764743674875,2.6373,3079.6,3079.5,0.00852862]
[1764743675066,2.6373,3079.1,3079.0,1.1506]
[1764743675274,2.6373,3079.0,3078.9,4.3584]
[1764743675470,2.6373,3079.0,3078.5,0.7635]
[1764743675471,3.3886,3079.0,3078.5,3.9713]
[1764743675674,3.3886,3079.0,3078.9,1.1506]
[1764743675980,5.8451,3079.7,3079.6,2.4985]
[1764743676279,6.55959051,3079.7,3079.6,2.4985]
[1764743678081,3.92229051,3079.7,3079.6,2.4985]
[1764743678380,3.2078,3079.7,3079.6,2.4985]
[1764743678577,1.21436973,3080.0,3079.9,2.367]
[1764743678775,1.92873213,3080.0,3079.9,2.367]
[1764743678976,2.46046973,3080.0,3079.9,2.367]
[1764743679175,1.21436973,3080.0,3079.9,2.367]
[1764743679373,3.17492412,3080.0,3079.9,2.367]
[1764743681086,3.17492412,3080.0,3079.9,1.1882]
[1764743681683,3.44642412,3080.0,3079.9,1.1882]
[1764743682087,3.44642412,3080.0,3079.5,3.9084]
[1764743682386,3.44642412,3080.0,3079.5,6.2754]
[1764743682387,1.2095,3079.6,3079.5,6.2754]
[1764743682686,2.73196973,3080.0,3079.9,1.1882]
[1764743682893,0.72222022,3080.0,3079.9,2.367]
[1764743683093,1.93172022,3080.0,3079.9,2.367]
[1764743683289,0.72222022,3080.0,3079.9,2.367]
[1764743683684,1.93172022,3080.0,3079.9,2.367]
[1764743684393,3.17782022,3080.0,3079.9,2.367]
[1764743685197,0.72222022,3080.0,3079.9,2.367]
[1764743685896,0.00486973,3080.0,3079.9,2.367]
[1764743686292,1.21436973,3080.0,3079.9,2.367]
[1764743686495,2.46046973,3080.0,3079.9,1.1882]
[1764743686887,2.46046973,3080.0,3079.9,2.367]
[1764743689489,2.46046973,3080.0,3079.9,1.1882]
[1764743689798,2.4556,3079.9,3079.8,3.2078]
[1764743690193,2.4556,3079.9,3079.5,0.7006]
[1764743690498,2.4556,3079.6,3079.5,3.1207]
[1764743690686,3.17226973,3080.0,3079.9,1.1882]
[1764743690998,1.2095,3079.6,3079.5,3.1207]
[1764743691496,3.17226973,3080.0,3079.9,1.1882]
[1764743691797,3.89062043,3080.0,3079.9,1.1882]
[1764743691993,3.89062043,3080.0,3079.9,2.367]
[1764743692193,3.17882043,3080.0,3079.9,2.367]
[1764743693804,3.17882043,3080.0,3079.9,1.1882]
[1764743694098,3.17882043,3080.0,3079.9,2.367]
[1764743694599,3.17882043,3080.0,3079.9,1.1882]
[1764743694901,3.17882043,3080.0,3079.9,2.367]
[1764743695303,3.17882043,3080.0,3079.9,1.1882]
[1764743695601,3.17882043,3080.0,3079.9,2.367]
[1764743695797,3.17882043,3080.0,3079.5,0.7537]
[1764743695798,2.4556,3079.6,3079.5,3.1207]
[1764743696005,3.17397475,3079.6,3079.5,2.367]
[1764743696201,3.17397475,3079.6,3079.5,1.1882]
[1764743697293,3.17397475,3079.6,3079.5,2.367]
[1764743697488,1.92787475,3079.6,3079.5,3.1207]
[1764743697694,1.2095,3079.6,3079.5,3.1207]
[1764743697894,1.92616973,3080.0,3079.9,1.1882]
[1764743698098,1.2095,3079.6,3079.5,3.1207]
[1764743698691,1.92616973,3080.0,3079.9,1.1882]
[1764743698898,3.89060981,3080.0,3079.9,1.1882]
[1764743699199,3.89060981,3080.0,3079.5,0.7537]
[1764743699394,3.17226973,3080.0,3079.9,1.1882]
[1764743699596,1.2095,3079.6,3079.5,3.1207]
[1764743700698,2.4556,3079.6,3079.5,3.1207]
[1764743701589,1.2095,3079.6,3079.5,3.1207]